bitfinex/quotes_SOLUSD_20250901
["timestamp","ask_amount","ask_price","bid_price","bid_amount"]
[1756705195841,0.06,199.02,199.01,57.66046713]
[1756705196037,0.06,199.02,199.01,60.5493997]
[1756705196637,0.06,199.02,199.01,21.5093997]
[1756705196866,0.06,199.02,199.01,60.5493997]
[1756705198460,0.06,199.02,199.01,57.66046713]
[1756705198756,0.06,199.02,199.01,60.5493997]
[1756705199262,0.06,199.02,199.01,57.66046713]
[1756705199446,0.06,199.02,199.01,60.5493997]
[1756705199759,0.06,199.02,199.01,60.69156127]
[1756705199969,0.06,199.02,199.01,75.78703927]
[1756705201062,0.06,199.02,199.01,67.89323358]
[1756705201252,0.06,199.02,199.01,75.80703927]
[1756705201634,0.06,199.02,198.95,93.16592896]
[1756705201839,0.06,199.02,199.01,16.48452658]
[1756705202044,0.06,199.02,199.01,55.58452658]
[1756705202361,0.06,199.02,199.01,55.72668815]
[1756705202557,0.06,199.02,199.01,81.72668815]
[1756705202862,0.06,199.02,199.01,70.82292715]
[1756705203569,0.06,199.02,199.01,72.9788677]
[1756705203761,0.06,199.02,199.01,36.74780027]
[1756705204261,0.06,199.02,199.01,44.7626287]
[1756705204462,0.06,199.02,199.01,47.65156127]
[1756705204840,0.06,199.02,199.01,21.65156127]
[1756705205162,0.06,199.02,199.01,65.79365827]
[1756705205373,0.06,199.02,199.01,16.48452658]
[1756705205545,0.06,199.02,199.01,55.60452658]
[1756705206169,0.06,199.02,199.01,13.59559401]
[1756705206467,0.06,199.02,199.01,52.71559401]
[1756705206643,0.06,199.02,198.98,2.88893257]
[1756705206843,0.06,199.02,198.99,55.60452658]
[1756705207556,0.06,199.02,198.99,16.48452658]
[1756705207744,0.06,199.02,199.0,39.14]
[1756705208261,0.06,199.02,198.99,21.50978308]
[1756705208562,0.06,199.02,198.99,16.48452658]
[1756705208881,2.88893257,199.0,198.91,13.59559401]
[1756705209069,2.88893257,198.98,198.93,2.88893257]
[1756705209385,2.88893257,198.99,198.94,42.02893257]
[1756705209572,7.91435639,198.99,198.98,0.03]
[1756705209744,5.02542382,198.99,198.98,39.17]
[1756705209945,7.91435639,198.99,198.98,39.17]
[1756705210150,7.91435639,198.99,198.98,0.03]
[1756705210347,7.91435639,198.99,198.98,39.17]
[1756705210952,7.91435639,198.99,198.98,0.03]
[1756705211269,5.02542382,198.99,198.98,0.03]
[1756705211472,13.595594,198.99,198.98,0.03]
[1756705211775,7.91407919,199.0,198.98,0.03]
[1756705211944,2.88893257,198.99,198.98,0.03]
[1756705213773,7.91431072,198.99,198.98,0.03]
[1756705215567,10.80324329,198.99,198.96,0.03]
[1756705215747,5.77786514,198.97,198.96,0.03]
[1756705216147,2.88893257,198.97,198.96,0.03]
[1756705216569,31.77786514,198.97,198.83,15.110686]
[1756705216758,2.88893257,198.9,198.85,2.88893257]
[1756705216951,2.88893257,198.9,198.85,13.59559401]
[1756705217750,5.02790487,198.89,198.85,13.59559401]
[1756705218778,2.62877105,198.98,198.88,2.88893257]
[1756705219073,2.88893257,198.94,198.89,42.06893257]
[1756705219274,5.02588329,198.97,198.91,2.88893257]
[1756705219485,7.91481586,198.97,198.92,39.2]
[1756705221188,2.88893257,198.96,198.92,39.2]
[1756705222289,5.02563071,198.98,198.92,39.2]
[1756705222489,2.88893257,198.96,198.92,39.2]
[1756705222674,2.88893257,198.96,198.93,39.2]
[1756705223479,7.9153211,198.95,198.93,39.2]
[1756705224890,7.9153211,198.95,198.9,13.59559401]
[1756705225083,7.9153211,198.95,198.91,39.2]
[1756705225591,7.91565566,198.94,198.91,39.2]
[1756705225778,2.88893257,198.92,198.91,39.2]
[1756705226299,2.88893257,198.92,198.84,17.99885757]
[1756705226498,2.88893257,198.89,198.85,52.79559401]
[1756705226790,15.112208,198.93,198.79,13.62559401]
[1756705227085,2.88893257,198.9,198.85,16.48452658]
[1756705227291,2.88893257,198.9,198.86,39.22]
[1756705227671,7.91674803,198.9,198.86,39.22]
[1756705227876,2.88893257,198.9,198.86,39.22]
[1756705228383,2.88893257,198.89,198.86,39.22]
[1756705229206,5.02714659,198.92,198.86,39.22]
[1756705229369,2.88893257,198.89,198.86,39.22]
[1756705229697,7.91702315,198.89,198.86,39.22]
[1756705231482,2.88893257,198.89,198.86,39.22]
[1756705234185,2.88893257,198.88,198.86,39.22]
[1756705234779,2.88893257,198.87,198.86,39.22]
[1756705234983,17.59683374,198.9,198.86,39.22]
[1756705235179,2.88893257,198.87,198.86,39.22]
[1756705235673,2.88893257,198.87,198.85,0.03]
[1756705235876,2.88893257,198.87,198.85,39.21]
[1756705236178,7.91757236,198.87,198.85,0.03]
[1756705236389,7.91757236,198.87,198.85,39.19]
[1756705236583,7.91757236,198.87,198.85,0.03]
[1756705236773,2.88893257,198.87,198.85,39.19]
[1756705236980,2.88893257,198.87,198.85,0.03]
[1756705237286,2.88893257,198.87,198.85,39.19]
[1756705237494,2.88893257,198.86,198.85,39.19]
[1756705237808,5.02790487,198.89,198.85,39.19]
[1756705237984,12.56674118,198.94,198.86,13.59559401]
[1756705238170,2.88893257,198.92,198.86,16.48452658]
[1756705238376,2.88893257,198.9,198.85,42.07893257]
[1756705239690,2.88893257,198.9,198.85,39.19]
[1756705239890,2.88893257,198.9,198.86,39.18]
[1756705240576,5.02790487,198.89,198.87,39.18]
[1756705240776,5.02790487,198.89,198.85,13.62559401]
[1756705240996,5.02714659,198.92,198.88,26.0]
[1756705241200,2.88893257,198.91,198.88,26.0]
[1756705241501,2.88893257,198.91,198.86,42.06893257]
[1756705241809,2.88893257,198.91,198.86,39.18]
[1756705242692,7.91654735,198.91,198.86,39.18]
[1756705243000,5.02664119,198.94,198.86,42.06893257]
[1756705243173,2.88893257,198.91,198.86,42.06893257]
[1756705243380,2.88893257,198.91,198.86,47.09754439]
[1756705243678,2.88893257,198.91,198.86,42.06893257]
[1756705243892,5.02664119,198.94,198.86,42.06893257]
[1756705244096,2.88893257,198.91,198.86,42.06893257]
[1756705244494,2.88893257,198.91,198.86,39.18]
[1756705244798,2.88893257,198.91,198.86,42.06893257]
[1756705244993,13.625594,198.95,198.87,13.59559401]
[1756705245194,2.88893257,198.91,198.87,13.59559401]
[1756705246596,5.02664119,198.94,198.87,13.59559401]
[1756705246803,2.88893257,198.91,198.87,13.59559401]
[1756705247003,7.91659879,198.9,198.87,13.59559401]
[1756705247594,2.88893257,198.9,198.87,13.59559401]
[1756705248002,7.91662073,198.9,198.87,13.59559401]
[1756705248412,2.88893257,198.88,198.86,39.21]
[1756705248588,5.02768816,198.9,198.86,0.03]
[1756705248791,2.88893257,198.89,198.86,0.03]
[1756705248992,7.91701531,198.89,198.86,0.03]
[1756705249511,5.02808274,198.89,198.86,0.03]
[1756705250006,5.02765208,198.9,198.86,0.03]
[1756705250216,7.91658465,198.9,198.86,0.03]
[1756705251907,5.02765208,198.9,198.85,40.08893257]
[1756705252689,20.48571486,198.9,198.85,37.2]
[1756705253003,2.88893257,198.89,198.85,37.2]
[1756705254494,5.02815768,198.88,198.85,37.2]
[1756705254697,5.02815768,198.88,198.85,40.08893257]
[1756705255216,5.02765208,198.9,198.86,2.88893257]
[1756705255405,5.02689388,198.93,198.88,2.88893257]
[1756705255609,5.02689388,198.93,198.89,2.88893257]
[1756705257808,5.02689388,198.93,198.88,2.88893257]
[1756705258010,7.91582645,198.93,198.87,2.88893257]
[1756705258308,2.88893257,198.92,198.85,37.2]
[1756705258708,2.88893257,198.92,198.86,2.88893257]
[1756705259309,2.88893257,198.92,198.87,2.88893257]
[1756705259919,5.02739932,198.91,198.87,2.88893257]
[1756705260601,5.02739932,198.91,198.86,2.88893257]
[1756705260802,5.02739932,198.91,198.87,2.88893257]
[1756705261003,5.02739932,198.91,198.86,2.88893257]
[1756705263224,7.91633189,198.91,198.86,2.88893257]
[1756705263423,7.91633189,198.91,198.85,13.59559401]
[1756705263625,5.02739932,198.91,198.86,2.88893257]
[1756705264202,2.88893257,198.93,198.88,2.88893257]
[1756705264396,7.9153211,198.95,198.89,2.88893257]
[1756705264804,7.9153211,198.95,198.87,13.59559401]
[1756705265017,2.88893257,198.94,198.88,2.88893257]
[1756705265328,2.88893257,198.93,198.88,2.88893257]
[1756705265522,0.06,198.91,198.88,2.88893257]
[1756705265728,0.06,198.91,198.87,13.59559401]
[1756705265924,0.06,198.91,198.85,5.05884877]
[1756705265925,1e-08,199.01,198.93,20.15689388]
[1756705266229,20.11343328,199.23,199.13,13.59559401]
[1756705266398,2.88893257,199.2,199.14,3.71252632]
[1756705266594,2.88893257,199.19,199.15,3.71252632]
[1756705266813,2.88893257,199.19,199.16,3.71252632]
[1756705267122,2.88893257,199.19,199.13,13.59559401]
[1756705267123,2.88893257,199.2,199.13,13.59559401]
[1756705267328,5.01947328,199.23,199.13,13.59559401]
[1756705267505,43.92893257,199.21,199.13,13.59559401]
[1756705267701,31.0191647,199.24,199.16,2.88893257]
[1756705267900,5.01831685,199.27,199.17,2.88893257]
[1756705268124,2.88893257,199.25,199.2,2.88893257]
[1756705268422,26.0,199.24,199.2,2.88893257]
[1756705268630,2.88893257,199.23,199.14,0.14216157]
[1756705268919,26.0,199.24,199.18,2.88893257]
[1756705269220,41.02,199.23,199.18,2.88893257]
[1756705269725,43.90893257,199.23,199.18,2.88893257]
[1756705269923,26.0,199.24,199.17,2.88893257]
[1756705269924,5.01982832,199.21,199.17,2.88893257]
[1756705270131,7.90876089,199.21,199.16,2.88893257]
[1756705270313,7.90876089,199.21,199.17,3.68078898]
[1756705270514,7.90876089,199.21,199.18,3.68078898]
[1756705270713,7.90876089,199.21,199.19,3.68078898]
[1756705270916,7.90876089,199.21,199.2,3.68078898]
[1756705271608,48.86876089,199.21,199.2,3.68078898]
[1756705271800,7.90876089,199.21,199.2,3.68078898]
[1756705272005,48.84876089,199.21,199.2,3.68078898]
[1756705272202,7.90876089,199.21,199.2,3.68078898]
[1756705272517,48.84876089,199.21,199.2,3.68078898]
[1756705273022,7.90876089,199.21,199.2,3.68078898]
[1756705273233,48.82876089,199.21,199.2,3.68078898]
[1756705273912,45.93982832,199.21,199.2,3.68078898]
[1756705274131,48.82876089,199.21,199.2,3.68078898]
[1756705274306,5.01982832,199.21,199.2,3.68078898]
[1756705274505,45.93982832,199.21,199.2,3.68078898]
[1756705274808,48.80876089,199.21,199.2,3.68078898]
[1756705277127,48.74876089,199.21,199.2,3.68078898]
[1756705277424,2.88893257,199.16,199.12,2.88893257]
[1756705277613,40.82,199.15,199.12,2.88893257]
[1756705277809,40.82,199.14,199.08,13.59559401]
[1756705278012,40.82,199.14,199.12,2.88893257]
[1756705278228,40.82,199.14,199.07,13.59559401]
[1756705278416,40.82,199.14,199.12,2.88893257]
[1756705278831,2.88893257,199.2,199.12,2.88893257]
[1756705279135,2.88893257,199.16,199.11,2.88893257]
[1756705279313,58.35469243,199.15,199.11,2.88893257]
[1756705279520,40.78,199.14,199.11,2.88893257]
[1756705280425,40.78,199.14,199.05,13.73775558]
[1756705280629,40.78,199.14,199.1,2.88893257]
[1756705281230,5.02184502,199.13,199.1,2.88893257]
[1756705281426,17.57645758,199.13,199.09,2.88893257]
[1756705281645,58.33645758,199.13,199.09,2.88893257]
[1756705281952,61.22539015,199.13,199.08,2.88893257]
[1756705282313,2.88893257,199.12,199.07,2.88893257]
[1756705282742,40.72,199.11,199.05,13.59559401]
[1756705282946,2.88893257,199.1,199.02,13.59559401]
[1756705283115,40.72,199.11,199.02,13.59559401]
[1756705283310,17.57910596,199.1,199.06,2.88893257]
[1756705283748,17.57910596,199.1,199.05,2.88893257]
[1756705284039,40.7,199.09,199.08,0.03]
[1756705284620,17.57910596,199.1,199.08,0.03]
[1756705284817,17.57910596,199.1,199.08,2.91893257]
[1756705285017,58.25910596,199.1,199.08,2.91893257]
[1756705286243,12.55650426,199.1,199.08,2.91893257]
[1756705287039,12.55650426,199.1,199.08,0.03]
[1756705287549,53.19650426,199.1,199.08,0.03]
[1756705287923,56.08543683,199.1,199.08,1e-08]
[1756705288122,25.10922512,199.13,199.08,1e-08]
[1756705288341,2.88893257,199.1,199.08,1e-08]
[1756705288542,40.62,199.09,199.08,1e-08]
[1756705289140,40.62,199.09,199.08,3.66046897]
[1756705289347,40.62,199.09,199.08,3.66022943]
[1756705290148,48.53178655,199.09,199.08,3.66022943]
[1756705290345,7.91178655,199.09,199.08,3.66022943]
[1756705290543,48.49178655,199.09,199.08,3.66022943]
[1756705290742,61.04892151,199.09,199.04,2.88893257]
[1756705290938,61.04892151,199.09,198.88,0.2]
[1756705290939,2.88893257,199.05,198.88,0.2]
[1756705291136,2.88893257,199.01,198.96,13.59559401]
[1756705291729,2.88893257,199.0,198.96,13.59559401]
[1756705292005,2.88893257,198.97,198.92,13.59559401]
[1756705292136,40.62,199.01,198.92,13.59559401]
[1756705292137,17.58793969,199.0,198.92,13.59559401]
[1756705292456,2.88893257,198.95,198.88,15.301558]
[1756705292658,2.88893257,198.95,198.9,13.73775558]
[1756705292871,40.64,198.97,198.89,4.9106325]
[1756705293051,2.88893257,198.94,198.89,7.79956507]
[1756705293248,42.71356783,199.0,198.91,2.88893257]
[1756705293570,2.88893257,198.97,198.92,13.59559401]
[1756705293940,2.88893257,198.96,198.92,13.59559401]
[1756705294441,5.02462064,199.02,198.94,13.59559401]
[1756705294770,20.47513633,199.02,198.96,2.88893257]
[1756705295549,2.88893257,199.0,198.96,13.59559401]
[1756705295956,2.88893257,199.0,198.93,13.59559401]
[1756705296155,2.88893257,199.0,198.93,13.73775558]
[1756705296348,2.88893257,199.04,198.95,13.59559401]
[1756705296349,20.47775611,198.99,198.95,13.59559401]
[1756705297474,17.58882354,198.99,198.95,13.59559401]
[1756705298247,17.58882354,198.99,198.95,16.48452658]
[1756705298649,17.58882354,198.99,198.95,13.59559401]
[1756705298858,17.58882354,198.99,198.95,16.48452658]
[1756705299982,17.58882354,198.99,198.96,2.88893257]
[1756705300362,5.02537815,198.99,198.98,2.88893257]
[1756705300557,5.02537815,198.99,198.98,13.59559401]
[1756705300757,5.02487312,199.01,198.99,13.59559401]
[1756705300951,5.02487312,199.01,199.0,16.48452658]
[1756705301871,12.55968096,199.05,199.01,13.59559401]
[1756705302073,12.55968096,199.05,198.98,13.73775558]
[1756705302372,12.55968096,199.05,199.0,4.7766166]
[1756705302573,12.55968096,199.05,199.01,4.7766166]
[1756705302773,12.61968096,199.05,199.01,4.7766166]
[1756705302963,12.61968096,199.05,199.0,4.7766166]
[1756705303778,17.64354431,199.05,199.0,4.7766166]
[1756705304281,17.64354431,199.05,199.01,4.7766166]
[1756705305075,22.42016091,199.05,199.0,4.7766166]
[1756705306347,22.42016091,199.05,199.02,4.7766166]
[1756705306348,5.08386335,199.05,199.02,4.7766166]
[1756705306676,5.08386335,199.05,199.04,18.37221061]
[1756705307266,0.06,199.05,199.04,13.59559401]
[1756705307465,5.08386335,199.05,199.04,18.37221061]
[1756705307669,5.08386335,199.05,199.04,13.59559401]
[1756705308056,5.08386335,199.05,199.04,18.37221061]
[1756705308254,0.06,199.05,199.04,18.37221061]
[1756705308483,0.06,199.05,199.04,13.59559401]
[1756705308991,0.06,199.05,199.04,18.37221061]
[1756705309572,0.06,199.05,199.04,18.51437218]
[1756705309775,0.06,199.05,199.04,44.51437218]
[1756705310580,0.06,199.05,199.04,45.01678375]
[1756705312470,0.06,199.05,199.04,60.10922475]
[1756705312678,0.06,199.05,199.04,45.01678375]
[1756705313189,0.06,199.05,199.04,44.51437218]
[1756705314589,0.06,199.05,199.04,184.51437218]
[1756705314792,0.06,199.05,199.04,158.51437218]
[1756705315674,22.3477798,199.19,199.08,39.59559401]
[1756705315880,17.5711632,199.19,199.15,4.7766166]
[1756705316071,17.5711632,199.19,199.16,4.7766166]
[1756705316593,12.55083086,199.19,199.16,4.7766166]
[1756705317295,12.55083086,199.19,199.15,13.59559401]
[1756705318079,12.55083086,199.19,199.15,18.37221061]
[1756705318483,12.55083086,199.19,199.14,4.7766166]
[1756705318670,4.7766166,199.19,199.14,4.7766166]
[1756705319183,4.7766166,199.2,199.14,4.7766166]
[1756705320295,17.5711632,199.19,199.14,4.7766166]
[1756705321171,5.02033234,199.19,199.15,4.7766166]
[1756705321494,5.02033234,199.19,199.17,18.37221061]
[1756705321675,5.02033234,199.19,199.18,18.37221061]
[1756705322176,0.06,199.19,199.18,13.59559401]
[1756705322870,0.06,199.19,199.16,4.7766166]
[1756705323287,0.06,199.19,199.18,4.7766166]
[1756705324102,0.06,199.19,199.18,2.86119263]
[1756705324473,0.06,199.19,199.18,13.59559401]
[1756705324987,0.06,199.19,199.17,13.59559401]
[1756705325695,0.06,199.19,199.17,2.86119263]
[1756705327906,0.06,199.19,199.18,13.59559401]
[1756705328870,0.06,199.19,199.17,2.86119263]
[1756705329098,0.06,199.19,199.14,53.89559401]
[1756705329290,0.06,199.19,199.16,13.59559401]
[1756705330589,0.06,199.19,199.16,16.45678664]
[1756705330875,0.06,199.19,199.16,2.86119263]
[1756705331501,0.06,199.19,199.15,16.45678664]
[1756705332701,0.06,199.19,199.15,13.59559401]
[1756705332885,0.06,199.19,199.15,16.45678664]
[1756705333598,0.06,199.19,199.18,16.45678664]
[1756705333799,0.06,199.19,199.18,2.86119263]
[1756705334387,0.06,199.19,199.18,56.69678664]
[1756705334783,0.06,199.19,199.18,53.83559401]
[1756705334981,0.06,199.19,199.18,56.69678664]
[1756705337801,0.06,199.19,199.18,16.45678664]
[1756705338012,0.06,199.19,199.18,56.63678664]
[1756705340600,0.06,199.19,199.18,16.45678664]
[1756705340802,0.06,199.19,199.18,53.73559401]
[1756705341825,0.06,199.19,199.18,40.12]
[1756705342403,0.06,199.19,199.18,40.14]
[1756705342613,0.06,199.19,199.18,40.12]
[1756705343408,0.06,199.19,199.18,53.71559401]
[1756705343603,0.06,199.19,199.18,56.57678664]
[1756705346006,0.06,199.19,199.18,56.55678664]
[1756705347040,0.06,199.19,199.17,13.59559401]
[1756705347407,0.06,199.19,199.18,40.06]
[1756705351524,0.06,199.19,199.17,13.59559401]
[1756705351727,0.06,199.19,199.18,40.04]
[1756705351935,0.06,199.19,199.14,2.86119263]
[1756705352105,0.06,199.19,199.15,40.0]
[1756705352431,2.92119263,199.19,199.16,40.02]
[1756705352603,2.92119263,199.19,199.12,13.59559401]
[1756705352924,2.86119263,199.16,199.13,40.02]
[1756705353302,2.86119263,199.16,199.1,2.86119263]
[1756705353552,2.86119263,199.16,199.11,40.0]
[1756705353836,2.86119263,199.15,199.11,40.0]
[1756705354428,0.06,199.19,199.05,0.03]
[1756705354429,5.02159284,199.14,199.05,0.03]
[1756705354602,5.02159284,199.14,199.09,2.86119263]
[1756705354809,2.86119263,199.13,199.06,0.14216157]
[1756705355130,2.86119263,199.13,199.07,42.86119263]
[1756705355431,2.86119263,199.13,199.07,2.86119263]
[1756705355729,2.86119263,199.13,199.08,40.1]
[1756705356112,17.57557496,199.14,199.08,40.1]
[1756705356311,2.86119263,199.13,199.08,40.1]
[1756705358233,25.1043179,199.17,199.08,40.1]
[1756705358529,2.86119263,199.13,199.08,40.1]
[1756705358939,5.02209722,199.12,199.08,40.1]
[1756705360636,38.61144991,199.19,199.1,2.86119263]
[1756705360847,2.92119263,199.19,199.14,2.86119263]
[1756705361014,0.06,199.19,199.14,2.86119263]
[1756705361214,0.06,199.19,199.15,2.86119263]
[1756705362062,0.06,199.19,199.14,42.98119263]
[1756705362415,2.92119263,199.19,199.14,42.98119263]
[1756705363140,0.06,199.19,199.14,42.98119263]
[1756705363310,0.06,199.19,199.14,40.12]
[1756705363509,0.06,199.19,199.14,42.98119263]
[1756705364727,0.06,199.19,199.14,40.12]
[1756705365043,5.08033234,199.19,199.14,42.98119263]
[1756705366339,5.08033234,199.19,199.15,2.86119263]
[1756705367819,5.08033234,199.19,199.14,42.98119263]
[1756705368832,5.08033234,199.19,199.14,40.12]
[1756705369033,5.08033234,199.19,199.14,42.98119263]
[1756705369843,5.08033234,199.19,199.14,42.88119263]
[1756705370454,5.08033234,199.19,199.15,2.86119263]
[1756705370817,0.06,199.19,199.18,2.86119263]
[1756705371020,0.06,199.19,199.15,13.59559401]
[1756705371243,0.06,199.19,199.18,2.86119263]
[1756705371416,0.06,199.19,199.17,2.86119263]
[1756705371941,0.06,199.19,199.16,2.86119263]
[1756705372136,0.06,199.19,199.17,40.0]
[1756705373342,0.06,199.19,199.17,39.98]
[1756705374151,0.06,199.19,199.16,2.86119263]
[1756705374332,0.06,199.19,199.17,39.98]
[1756705374573,0.06,199.19,199.16,2.86119263]
[1756705374731,0.06,199.19,199.17,39.96]
[1756705375432,0.06,199.19,199.16,39.94]
[1756705375940,0.06,199.19,199.15,42.80119263]
[1756705376324,5.08033234,199.19,199.15,42.80119263]
[1756705377242,5.08033234,199.19,199.15,42.83119263]
[1756705377551,0.06,199.19,199.15,42.83119263]
[1756705378345,0.06,199.19,199.16,2.86119263]
[1756705378744,0.06,199.19,199.16,39.9]
[1756705379162,0.06,199.19,199.15,0.03]
[1756705379460,0.06,199.19,199.15,39.91]
[1756705379659,0.06,199.19,199.15,42.77119263]
[1756705380036,0.06,199.19,199.15,39.91]
[1756705381060,0.06,199.19,199.15,0.03]
[1756705381061,2.86119263,199.16,199.15,0.03]
[1756705381236,2.86119263,199.17,199.15,0.03]
[1756705381558,2.86119263,199.16,199.15,0.03]
[1756705382259,2.86119263,199.16,199.13,0.03]
[1756705382439,2.86119263,199.14,199.13,0.03]
[1756705383153,7.88278547,199.14,199.13,0.03]
[1756705383358,5.02159284,199.14,199.13,0.03]
[1756705383856,5.02066263,199.18,199.13,0.03]
[1756705384061,5.02066263,199.18,199.14,2.86119263]
[1756705384437,5.02066263,199.18,199.13,0.03]
[1756705384641,5.02066263,199.18,199.14,2.86119263]
[1756705385061,0.06,199.19,199.15,2.86119263]
[1756705386362,0.06,199.19,199.14,2.86119263]
[1756705386548,2.86119263,199.18,199.13,42.77119263]
[1756705387261,5.02083647,199.17,199.13,42.77119263]
[1756705388859,5.02083647,199.17,199.14,16.45678664]
[1756705389060,5.0205983,199.18,199.16,2.86119263]
[1756705389264,0.06,199.19,199.17,2.86119263]
[1756705390965,0.06,199.19,199.16,2.86119263]
[1756705392540,0.06,199.19,199.15,15.41038763]
[1756705393171,0.06,199.19,199.15,12.549195]
[1756705393371,0.06,199.19,199.16,2.86119263]
[1756705393872,0.06,199.19,199.15,12.549196]
[1756705394076,0.06,199.19,199.16,2.86119263]
[1756705394571,2.92119263,199.19,199.15,12.548783]
[1756705394743,2.92119263,199.19,199.15,39.78]
[1756705394949,5.02058439,199.18,199.15,39.78]
[1756705395471,7.88177702,199.18,199.13,55.23997563]
[1756705396257,7.88177702,199.18,199.15,0.03]
[1756705396451,5.02058439,199.18,199.15,0.03]
[1756705396776,5.02058439,199.18,199.15,2.89119263]
[1756705396981,5.08033234,199.19,199.15,2.89119263]
[1756705397473,5.08033234,199.19,199.16,5.020585]
[1756705397679,5.08033234,199.19,199.15,0.03]
[1756705397862,5.08033234,199.19,199.15,5.110333]
[1756705398269,5.08033234,199.19,199.15,0.03]
[1756705398452,0.06,199.19,199.15,0.03]
[1756705398652,2.92119263,199.19,199.15,0.03]
[1756705398852,0.06,199.19,199.15,0.03]
[1756705402662,0.06,199.19,199.15,13.62559401]
[1756705402868,0.06,199.19,199.15,16.48678664]
[1756705403075,0.06,199.19,199.15,31.57543264]
[1756705403263,0.06,199.19,199.15,28.71424001]
[1756705403458,0.06,199.19,199.15,31.57543264]
[1756705403685,0.06,199.19,199.15,16.48678664]
[1756705404083,0.06,199.19,199.15,21.50560764]
[1756705404755,0.06,199.19,199.15,0.03]
[1756705404957,2.86119263,199.17,199.15,0.03]
[1756705405380,0.06,199.19,199.15,0.03]
[1756705405587,5.08033234,199.19,199.15,0.03]
[1756705405773,7.94152497,199.19,199.15,0.03]
[1756705405980,2.86119263,199.18,199.15,0.03]
[1756705406178,2.86119263,199.17,199.15,0.03]
[1756705407988,5.02108857,199.16,199.15,0.03]
[1756705409591,0.06,199.19,199.15,0.03]
[1756705409758,2.86119263,199.17,199.15,0.03]
[1756705410260,0.06,199.19,199.15,0.03]
[1756705410660,0.06,199.19,199.15,2.89119263]
[1756705411473,0.06,199.19,199.15,0.03]
[1756705411677,7.8820291,199.17,199.15,0.03]
[1756705411872,2.86119263,199.16,199.15,0.03]
[1756705413669,7.8822812,199.16,199.15,0.03]
[1756705413864,7.8822812,199.16,199.13,0.03]
[1756705414065,2.86119263,199.14,199.13,0.03]
[1756705415795,7.88278547,199.14,199.13,0.03]
[1756705416711,5.02159284,199.14,199.13,0.03]
[1756705416900,7.88278547,199.14,199.13,0.03]
[1756705423909,0.06,199.16,199.13,0.03]
[1756705424305,2.86119263,199.15,199.13,0.03]
[1756705425176,5.02140231,199.15,199.13,0.03]
[1756705425379,7.88259494,199.15,199.13,0.03]
[1756705425795,5.02140231,199.15,199.13,0.03]
[1756705426703,0.06,199.16,199.13,0.03]
[1756705427020,0.06,199.16,199.13,5.051402]
[1756705427893,0.06,199.16,199.14,13.59559401]
[1756705428096,0.06,199.16,199.14,16.45678664]
[1756705429888,0.06,199.16,199.15,2.011921]
[1756705432727,0.06,199.16,199.14,53.15559401]
[1756705433083,0.06,199.16,199.14,55.16751501]
[1756705433509,0.06,199.16,199.14,39.56]
[1756705433720,2.92119263,199.16,199.13,53.10559401]
[1756705434397,0.06,199.16,199.13,53.10559401]
[1756705435118,0.06,199.16,199.15,0.03]
[1756705441312,2.92119263,199.16,199.15,0.03]
[1756705441618,7.9422812,199.16,199.15,0.03]
[1756705442825,7.9422812,199.16,199.13,0.03]
[1756705442994,2.86119263,199.14,199.13,0.03]
[1756705443622,33.88278547,199.14,199.13,0.03]
[1756705443797,7.88278547,199.14,199.13,0.03]
[1756705445717,28.86119263,199.14,199.13,0.03]
[1756705447798,33.88278547,199.14,199.13,0.03]
[1756705449673,36.7439781,199.14,199.13,0.03]
[1756705450925,33.88278547,199.14,199.13,0.03]
[1756705451111,31.02159284,199.14,199.13,0.03]
[1756705451310,33.88278547,199.14,199.11,0.03]
[1756705451524,26.0,199.09,199.05,0.03]
[1756705451828,7.8848036,199.06,199.05,0.03]
[1756705453884,26.0,199.04,199.02,0.03]
[1756705454153,2.86119263,199.03,199.02,0.03]
[1756705454937,127.65072217,199.11,199.02,16.48678664]
[1756705454938,5.02317252,199.08,199.02,16.48678664]
[1756705455324,5.02290864,199.09,199.04,16.45678664]
[1756705455558,7.88410127,199.09,199.04,16.45678664]